[Event "MČR juniorů a juniorek v rapid šachu 2023"]
[Site "Czech Republic"]
[Date "2023.09.23"]
[Round "1.19"]
[White "Jun, Robert"]
[Black "Martinkovic, Adam"]
[Result "0-1"]
[TimeControl "20 min + 5 sec per move"]
[WhiteFideId "23709510"]
[BlackFideId "23728019"]
[WhiteElo "1340"]
[BlackElo "1807"]

1. e4 {[%clk 00:20:08]} {[%emt 00:00:01]} c6 {[%clk 00:20:07]} {[%emt
00:00:03]} 2. d4 {[%clk 00:20:10]} {[%emt 00:00:03]} d5 {[%clk 00:20:11]}
{[%emt 00:00:02]} 3. exd5 {[%clk 00:20:14]} {[%emt 00:00:02]} cxd5 {[%clk
00:20:14]} {[%emt 00:00:02]} 4. c4 {[%clk 00:20:10]} {[%emt 00:00:08]} Nf6
{[%clk 00:20:06]} {[%emt 00:00:13]} 5. Nc3 {[%clk 00:20:12]} {[%emt 00:00:04]}
Nc6 {[%clk 00:19:49]} {[%emt 00:00:22]} 6. Nf3 {[%clk 00:19:44]} {[%emt
00:00:32]} Bg4 {[%clk 00:19:28]} {[%emt 00:00:26]} 7. cxd5 {[%clk 00:17:02]}
{[%emt 00:02:48]} Nxd5 {[%clk 00:19:21]} {[%emt 00:00:12]} 8. Bb5 {[%clk
00:16:29]} {[%emt 00:00:38]} Rc8 {[%clk 00:16:30]} {[%emt 00:02:56]} 9. Bc4
{[%clk 00:13:18]} {[%emt 00:03:16]} e6 {[%clk 00:16:16]} {[%emt 00:00:19]} 10.
O-O {[%clk 00:11:25]} {[%emt 00:01:58]} Be7 {[%clk 00:16:01]} {[%emt 00:00:20]}
11. Bb5 {[%clk 00:09:13]} {[%emt 00:02:17]} O-O {[%clk 00:15:16]} {[%emt
00:00:49]} 12. Bxc6 {[%clk 00:05:44]} {[%emt 00:03:35]} Rxc6 {[%clk 00:15:08]}
{[%emt 00:00:13]} 13. Bd2 {[%clk 00:02:00]} {[%emt 00:03:49]} Bf6 {[%clk
00:14:05]} {[%emt 00:01:08]} 14. Nxd5 {[%clk 00:01:46]} {[%emt 00:00:18]} Qxd5
{[%clk 00:13:52]} {[%emt 00:00:18]} 15. Bc3 {[%clk 00:01:49]} {[%emt 00:00:01]}
Bxf3 {[%clk 00:13:32]} {[%emt 00:00:25]} 16. Qxf3 {[%clk 00:01:52]} {[%emt
00:00:03]} Qxf3 {[%clk 00:13:28]} {[%emt 00:00:09]} 17. gxf3 {[%clk 00:01:55]}
{[%emt 00:00:02]} Rd8 {[%clk 00:13:31]} {[%emt 00:00:02]} 18. Rad1 {[%clk
00:01:01]} {[%emt 00:00:59]} Rcd6 {[%clk 00:13:22]} {[%emt 00:00:14]} 19. Rfe1
{[%clk 00:00:59]} {[%emt 00:00:07]} Bxd4 {[%clk 00:12:51]} {[%emt 00:00:36]} 20.
Bb4 {[%clk 00:00:33]} {[%emt 00:00:32]} R6d7 {[%clk 00:12:37]} {[%emt
00:00:19]} 21. Rb1 {[%clk 00:00:15]} {[%emt 00:00:22]} Rd5 {[%clk 00:11:32]}
{[%emt 00:01:10]} 22. Kf1 {[%clk 00:00:15]} {[%emt 00:00:05]} a5 {[%clk
00:10:52]} {[%emt 00:00:45]} 23. Be7 {[%clk 00:00:13]} {[%emt 00:00:07]} R8d7
{[%clk 00:09:35]} {[%emt 00:01:23]} 24. Bh4 {[%clk 00:00:16]} {[%emt 00:00:02]}
h5 {[%clk 00:08:38]} {[%emt 00:01:01]} 25. b3 {[%clk 00:00:20]} {[%emt
00:00:01]} g5 {[%clk 00:07:36]} {[%emt 00:01:08]} 26. Bg3 {[%clk 00:00:17]}
{[%emt 00:00:07]} h4 {[%clk 00:04:52]} {[%emt 00:02:49]} 27. Bb8 {[%clk
00:00:21]} {[%emt 00:00:02]} Rd8 {[%clk 00:04:18]} {[%emt 00:00:39]} 28. Bc7
{[%clk 00:00:23]} {[%emt 00:00:02]} Rc8 {[%clk 00:04:11]} {[%emt 00:00:11]} 29.
Rbc1 {[%clk 00:00:23]} {[%emt 00:00:06]} b6 {[%clk 00:03:34]} {[%emt 00:00:42]}
30. Red1 {[%clk 00:00:12]} {[%emt 00:00:16]} e5 {[%clk 00:02:38]} {[%emt
00:01:02]} 31. Rc6 {[%clk 00:00:07]} {[%emt 00:00:10]} Rd7 {[%clk 00:02:25]}
{[%emt 00:00:17]} 32. Rdc1 {[%clk 00:00:06]} {[%emt 00:00:07]} Bc5 {[%clk
00:01:59]} {[%emt 00:00:31]} 33. Bxb6 {[%clk 00:00:09]} {[%emt 00:00:04]} Rxc6
{[%clk 00:01:58]} {[%emt 00:00:05]} 34. Bxc5 {[%clk 00:00:13]} {[%emt
00:00:01]} Rdc7 {[%clk 00:02:00]} {[%emt 00:00:03]} 35. a3 {[%clk 00:00:10]}
{[%emt 00:00:08]} Rxc5 {[%clk 00:02:01]} {[%emt 00:00:04]} 36. Rd1 {[%clk
00:00:13]} {[%emt 00:00:01]} Rc1 {[%clk 00:02:03]} {[%emt 00:00:03]} 37. Ke2
{[%clk 00:00:16]} {[%emt 00:00:02]} Rxd1 {[%clk 00:02:05]} {[%emt 00:00:03]} 38.
Kxd1 {[%clk 00:00:20]} {[%emt 00:00:01]} Rc3 {[%clk 00:02:06]} {[%emt
00:00:05]} 39. b4 {[%clk 00:00:21]} {[%emt 00:00:04]} axb4 {[%clk 00:02:09]}
{[%emt 00:00:02]} 40. axb4 {[%clk 00:00:25]} {[%emt 00:00:01]} Rb3 {[%clk
00:02:13]} {[%emt 00:00:01]} 41. Kd2 {[%clk 00:00:27]} {[%emt 00:00:03]} Rxb4
{[%clk 00:02:16]} {[%emt 00:00:01]} 42. Ke3 {[%clk 00:00:31]} f5 {[%clk
00:02:16]} {[%emt 00:00:05]} 43. h3 {[%clk 00:00:34]} {[%emt 00:00:02]} Kf7
{[%clk 00:02:16]} {[%emt 00:00:05]} 0-1

[Event "MČR juniorů a juniorek v rapid šachu 2023"]
[Site "Czech Republic"]
[Date "2023.09.23"]
[Round "1.20"]
[White "Garabik, Marek"]
[Black "Nikolinko, Tomas"]
[Result "1-0"]
[TimeControl "20 min + 5 sec per move"]
[WhiteFideId "23717742"]
[BlackFideId "389749"]
[WhiteElo "1787"]
[BlackElo "1327"]

1. e4 {[%clk 00:20:09]} c5 {[%clk 00:20:09]} {[%emt 00:00:02]} 2. Nc3 {[%clk
00:20:13]} Nc6 {[%clk 00:20:13]} {[%emt 00:00:01]} 3. f4 {[%clk 00:20:16]}
{[%emt 00:00:01]} g6 {[%clk 00:20:08]} {[%emt 00:00:10]} 4. Bb5 {[%clk
00:20:08]} {[%emt 00:00:13]} Bg7 {[%clk 00:20:02]} {[%emt 00:00:12]} 5. Bxc6
{[%clk 00:20:12]} {[%emt 00:00:01]} dxc6 {[%clk 00:19:53]} {[%emt 00:00:14]} 6.
d3 {[%clk 00:20:13]} {[%emt 00:00:02]} c4 {[%clk 00:19:18]} {[%emt 00:00:41]} 7.
Nf3 {[%emt 00:01:04]} cxd3 {[%clk 00:19:11]} 8. cxd3 {[%clk 00:19:13]} {[%emt
00:00:17]} Nf6 {[%clk 00:18:46]} {[%emt 00:00:30]} 9. d4 {[%clk 00:17:58]}
{[%emt 00:01:21]} Bg4 {[%clk 00:18:02]} {[%emt 00:00:49]} 10. Be3 {[%clk
00:17:18]} {[%emt 00:00:44]} Qa5 {[%clk 00:17:01]} {[%emt 00:01:06]} 11. O-O
{[%clk 00:16:48]} {[%emt 00:00:35]} O-O {[%clk 00:16:50]} {[%emt 00:00:16]} 12.
h3 {[%clk 00:16:41]} {[%emt 00:00:13]} Bxf3 {[%clk 00:16:24]} {[%emt 00:00:31]}
13. Qxf3 {[%clk 00:16:29]} {[%emt 00:00:17]} Rfd8 {[%clk 00:15:38]} {[%emt
00:00:51]} 14. g4 {[%clk 00:13:27]} {[%emt 00:03:06]} Ne8 {[%clk 00:14:51]}
{[%emt 00:00:53]} 15. e5 {[%clk 00:12:25]} {[%emt 00:01:07]} Nc7 {[%clk
00:14:23]} {[%emt 00:00:32]} 16. f5 {[%clk 00:10:29]} {[%emt 00:02:01]} Nd5
{[%clk 00:13:44]} {[%emt 00:00:44]} 17. fxg6 {[%clk 00:09:22]} {[%emt
00:01:13]} Nxe3 {[%clk 00:12:04]} {[%emt 00:01:45]} 18. gxf7+ {[%clk 00:09:05]}
{[%emt 00:00:22]} Kf8 {[%clk 00:11:44]} {[%emt 00:00:25]} 19. Qxe3 {[%clk
00:09:05]} {[%emt 00:00:05]} Qb6 {[%clk 00:11:10]} {[%emt 00:00:39]} 20. Rad1
{[%clk 00:06:37]} {[%emt 00:02:32]} Rac8 {[%clk 00:08:29]} {[%emt 00:02:46]} 21.
Ne4 {[%clk 00:05:34]} {[%emt 00:01:09]} Bxe5 {[%clk 00:07:54]} {[%emt
00:00:40]} 22. Ng5 {[%clk 00:04:58]} {[%emt 00:00:41]} Rd6 {[%clk 00:05:40]}
{[%emt 00:02:20]} 23. Qxe5 {[%clk 00:04:50]} {[%emt 00:00:12]} 1-0

[Event "MČR juniorů a juniorek v rapid šachu 2023"]
[Site "Czech Republic"]
[Date "2023.09.23"]
[Round "1.21"]
[White "Jun, Rostislav"]
[Black "Rucabado, Stefan"]
[Result "0-1"]
[TimeControl "20 min + 5 sec per move"]
[WhiteFideId "23719524"]
[BlackFideId "23730315"]
[WhiteElo "1317"]
[BlackElo "1782"]

1. e4 {[%clk 00:20:04]} {[%emt 00:00:05]} g6 {[%clk 00:20:00]} {[%emt
00:00:10]} 2. d4 {[%clk 00:20:05]} {[%emt 00:00:05]} Bg7 {[%clk 00:20:04]} 3.
Nf3 {[%clk 00:20:06]} {[%emt 00:00:04]} a6 {[%clk 00:20:08]} 4. Be3 {[%clk
00:20:00]} {[%emt 00:00:10]} b5 {[%clk 00:20:12]} {[%emt 00:00:02]} 5. a3
{[%clk 00:19:59]} {[%emt 00:00:06]} Bb7 {[%clk 00:20:15]} {[%emt 00:00:02]} 6.
Nc3 {[%clk 00:19:58]} {[%emt 00:00:06]} d6 {[%clk 00:20:16]} {[%emt 00:00:04]}
7. Bd3 {[%clk 00:19:32]} {[%emt 00:00:31]} Nd7 {[%clk 00:20:13]} {[%emt
00:00:07]} 8. O-O {[%clk 00:19:23]} {[%emt 00:00:14]} c5 {[%clk 00:19:59]}
{[%emt 00:00:19]} 9. b4 {[%clk 00:15:08]} {[%emt 00:04:20]} Rc8 {[%clk
00:14:53]} {[%emt 00:05:11]} 10. Qe1 {[%clk 00:13:10]} {[%emt 00:02:03]} cxd4
{[%clk 00:11:15]} {[%emt 00:03:43]} 11. Bxd4 {[%clk 00:12:54]} {[%emt
00:00:22]} Bxd4 {[%clk 00:09:55]} {[%emt 00:01:25]} 12. Nxd4 {[%clk 00:12:56]}
{[%emt 00:00:03]} Qb6 {[%clk 00:09:58]} {[%emt 00:00:01]} 13. Nf3 {[%clk
00:12:18]} {[%emt 00:00:43]} Ngf6 {[%clk 00:09:50]} {[%emt 00:00:14]} 14. Rb1
{[%clk 00:08:57]} {[%emt 00:03:27]} O-O {[%clk 00:09:14]} {[%emt 00:00:40]} 15.
Qd2 {[%clk 00:08:24]} {[%emt 00:00:38]} Kg7 {[%clk 00:08:22]} {[%emt 00:00:57]}
16. Rfe1 {[%clk 00:07:36]} {[%emt 00:00:52]} Qc7 {[%clk 00:07:48]} {[%emt
00:00:40]} 17. Rb3 {[%clk 00:07:18]} {[%emt 00:00:23]} Ne5 {[%clk 00:07:04]}
{[%emt 00:00:49]} 18. h3 {[%clk 00:05:58]} {[%emt 00:01:26]} d5 {[%clk
00:04:47]} {[%emt 00:02:21]} 19. Nxe5 {[%clk 00:04:20]} {[%emt 00:01:42]} Qxe5
{[%clk 00:04:51]} {[%emt 00:00:02]} 20. exd5 {[%clk 00:04:20]} {[%emt
00:00:05]} Qd6 {[%clk 00:04:28]} {[%emt 00:00:28]} 21. Ne4 {[%clk 00:03:53]}
{[%emt 00:00:32]} Qxd5 {[%clk 00:04:22]} {[%emt 00:00:12]} 22. f3 {[%clk
00:03:34]} {[%emt 00:00:24]} Qd4+ {[%clk 00:03:07]} {[%emt 00:01:20]} 23. Kh1
{[%clk 00:03:30]} {[%emt 00:00:09]} Bxe4 {[%clk 00:02:50]} {[%emt 00:00:20]} 24.
fxe4 {[%clk 00:03:28]} {[%emt 00:00:09]} e5 {[%clk 00:02:42]} {[%emt 00:00:12]}
25. c3 {[%clk 00:02:11]} {[%emt 00:01:23]} Qd6 {[%clk 00:02:25]} {[%emt
00:00:21]} 26. Rd1 {[%clk 00:01:23]} {[%emt 00:00:53]} Rfd8 {[%clk 00:02:10]}
{[%emt 00:00:20]} 27. Qc2 {[%clk 00:00:54]} {[%emt 00:00:35]} Nxe4 {[%clk
00:01:57]} {[%emt 00:00:17]} 28. Be2 {[%clk 00:00:38]} {[%emt 00:00:22]} Nf2+
{[%clk 00:01:56]} {[%emt 00:00:06]} 29. Kh2 {[%clk 00:00:36]} {[%emt 00:00:07]}
Nxd1 {[%clk 00:01:59]} {[%emt 00:00:02]} 30. Rb1 {[%emt 00:00:25]} Nxc3 {[%emt
00:00:12]} 0-1

[Event "MČR juniorů a juniorek v rapid šachu 2023"]
[Site "Czech Republic"]
[Date "2023.09.23"]
[Round "1.22"]
[White "Svacina, Tobias"]
[Black "Glasbergerova, Lucie"]
[Result "1-0"]
[TimeControl "20 min + 5 sec per move"]
[WhiteFideId "385859"]
[BlackFideId "23725184"]
[WhiteElo "1782"]
[BlackElo "1314"]

1. e4 {[%clk 00:20:08]} {[%emt 00:00:02]} e5 {[%clk 00:20:08]} {[%emt
00:00:02]} 2. Nf3 {[%clk 00:20:06]} {[%emt 00:00:07]} Nc6 {[%clk 00:20:12]}
{[%emt 00:00:02]} 3. Bc4 {[%clk 00:19:56]} {[%emt 00:00:15]} Bc5 {[%clk
00:20:14]} {[%emt 00:00:03]} 4. b4 {[%clk 00:19:52]} {[%emt 00:00:08]} Bxb4
{[%clk 00:20:14]} {[%emt 00:00:04]} 5. c3 {[%clk 00:19:54]} {[%emt 00:00:04]}
Ba5 {[%clk 00:20:13]} {[%emt 00:00:06]} 6. d4 {[%clk 00:19:45]} {[%emt
00:00:13]} exd4 {[%clk 00:20:08]} {[%emt 00:00:10]} 7. Qb3 {[%clk 00:19:31]}
{[%emt 00:00:18]} Qe7 {[%clk 00:18:58]} {[%emt 00:01:15]} 8. O-O {[%clk
00:19:18]} {[%emt 00:00:19]} d6 {[%clk 00:17:03]} {[%emt 00:02:00]} 9. cxd4
{[%clk 00:19:05]} {[%emt 00:00:18]} h6 {[%clk 00:16:17]} {[%emt 00:00:51]} 10.
d5 {[%clk 00:18:38]} {[%emt 00:00:32]} Ne5 {[%clk 00:13:33]} {[%emt 00:02:48]}
11. Nxe5 {[%clk 00:16:21]} {[%emt 00:02:23]} Qxe5 {[%clk 00:12:59]} {[%emt
00:00:39]} 12. Bb2 {[%clk 00:15:33]} {[%emt 00:00:54]} Qg5 {[%clk 00:11:01]}
{[%emt 00:02:01]} 13. Qa4+ {[%clk 00:13:55]} {[%emt 00:01:44]} Bd7 {[%clk
00:08:33]} {[%emt 00:02:33]} 14. Bb5 {[%clk 00:13:03]} {[%emt 00:00:57]} Rd8
{[%clk 00:07:46]} {[%emt 00:00:47]} 15. Bxd7+ {[%clk 00:13:02]} {[%emt
00:00:05]} Rxd7 {[%clk 00:07:49]} {[%emt 00:00:07]} 16. Qxa5 {[%clk 00:13:00]}
{[%emt 00:00:08]} a6 {[%clk 00:07:39]} {[%emt 00:00:15]} 17. Nd2 {[%clk
00:12:37]} {[%emt 00:00:29]} Nf6 {[%clk 00:06:46]} {[%emt 00:00:56]} 18. Nf3
{[%clk 00:12:18]} {[%emt 00:00:24]} Qg6 {[%clk 00:06:06]} {[%emt 00:00:45]} 19.
e5 {[%clk 00:11:52]} {[%emt 00:00:32]} Ne4 {[%clk 00:03:54]} {[%emt 00:02:17]}
20. Qa4 {[%clk 00:08:32]} {[%emt 00:03:25]} Nc5 {[%clk 00:03:17]} {[%emt
00:00:41]} 21. Qd4 {[%clk 00:07:42]} {[%emt 00:00:56]} O-O {[%clk 00:01:20]}
{[%emt 00:02:03]} 22. exd6 {[%clk 00:07:44]} {[%emt 00:00:02]} cxd6 {[%clk
00:01:21]} {[%emt 00:00:04]} 23. Nh4 {[%clk 00:06:27]} {[%emt 00:01:22]} Qh7
{[%clk 00:00:41]} {[%emt 00:00:45]} 24. Nf5 {[%clk 00:05:20]} {[%emt 00:01:12]}
f6 {[%clk 00:00:27]} {[%emt 00:00:19]} 25. Nxd6 {[%clk 00:04:56]} {[%emt
00:00:29]} Rc7 {[%clk 00:00:18]} {[%emt 00:00:13]} 26. Rac1 {[%clk 00:04:37]}
{[%emt 00:00:25]} b6 {[%clk 00:00:14]} {[%emt 00:00:09]} 27. Ne4 {[%clk
00:04:22]} {[%emt 00:00:20]} Rfc8 {[%clk 00:00:09]} {[%emt 00:00:10]} 28. d6
{[%clk 00:04:09]} {[%emt 00:00:18]} Rd7 {[%clk 00:00:09]} {[%emt 00:00:05]} 29.
Qd5+ {[%clk 00:04:04]} {[%emt 00:00:10]} Kh8 {[%clk 00:00:08]} {[%emt
00:00:05]} 30. Nxf6 {[%clk 00:03:33]} {[%emt 00:00:37]} 1-0

[Event "MČR juniorů a juniorek v rapid šachu 2023"]
[Site "Czech Republic"]
[Date "2023.09.23"]
[Round "1.23"]
[White "Halama, Tomas"]
[Black "Pavlis, Matej"]
[Result "0-1"]
[TimeControl "20 min + 5 sec per move"]
[WhiteFideId "397970"]
[BlackFideId "23735767"]
[WhiteElo "1306"]
[BlackElo "1771"]

1. c4 {[%clk 00:20:09]} Nf6 {[%clk 00:20:03]} {[%emt 00:00:08]} 2. Nc3 {[%clk
00:20:09]} {[%emt 00:00:04]} e6 {[%clk 00:20:06]} {[%emt 00:00:03]} 3. g3
{[%clk 00:19:58]} {[%emt 00:00:16]} c5 {[%clk 00:20:04]} {[%emt 00:00:07]} 4.
Bg2 {[%clk 00:19:52]} {[%emt 00:00:10]} Be7 {[%clk 00:20:05]} {[%emt 00:00:04]}
5. e3 {[%clk 00:19:46]} {[%emt 00:00:11]} Nc6 {[%clk 00:19:42]} {[%emt
00:00:28]} 6. Nge2 {[%clk 00:19:18]} {[%emt 00:00:32]} O-O {[%clk 00:19:32]}
{[%emt 00:00:16]} 7. O-O {[%clk 00:19:06]} {[%emt 00:00:16]} a6 {[%clk
00:18:23]} {[%emt 00:01:15]} 8. d4 {[%clk 00:17:09]} {[%emt 00:02:02]} cxd4
{[%clk 00:17:34]} {[%emt 00:00:54]} 9. Nxd4 {[%clk 00:16:32]} {[%emt 00:00:42]}
Qc7 {[%clk 00:17:25]} {[%emt 00:00:14]} 10. Nxc6 {[%clk 00:15:54]} {[%emt
00:00:43]} bxc6 {[%clk 00:17:13]} {[%emt 00:00:17]} 11. b3 {[%clk 00:15:33]}
{[%emt 00:00:26]} d5 {[%clk 00:16:49]} {[%emt 00:00:29]} 12. cxd5 {[%clk
00:12:16]} {[%emt 00:03:22]} cxd5 {[%clk 00:15:56]} {[%emt 00:00:59]} 13. Bb2
{[%clk 00:12:13]} {[%emt 00:00:08]} Bb7 {[%clk 00:15:35]} {[%emt 00:00:27]} 14.
Rc1 {[%clk 00:11:58]} {[%emt 00:00:19]} Qd6 {[%clk 00:11:37]} {[%emt 00:04:02]}
15. Qd4 {[%clk 00:08:52]} {[%emt 00:03:12]} e5 {[%clk 00:08:38]} {[%emt
00:03:04]} 16. Qd2 {[%clk 00:07:02]} {[%emt 00:01:54]} Rfd8 {[%clk 00:08:20]}
{[%emt 00:00:24]} 17. Rfd1 {[%clk 00:06:35]} {[%emt 00:00:32]} Qe6 {[%clk
00:07:42]} {[%emt 00:00:43]} 18. Qe2 {[%clk 00:05:08]} {[%emt 00:01:31]} Rac8
{[%clk 00:07:13]} {[%emt 00:00:35]} 19. Rc2 {[%clk 00:04:00]} {[%emt 00:01:13]}
a5 {[%clk 00:05:42]} {[%emt 00:01:36]} 20. Rcd2 {[%clk 00:03:05]} {[%emt
00:01:00]} Bb4 {[%clk 00:05:08]} {[%emt 00:00:39]} 21. Qd3 {[%clk 00:00:19]}
{[%emt 00:02:51]} Ba6 {[%clk 00:05:10]} {[%emt 00:00:02]} 22. Qc2 {[%clk
00:00:09]} {[%emt 00:00:15]} d4 {[%clk 00:04:26]} {[%emt 00:00:49]} 23. exd4
{[%clk 00:00:12]} {[%emt 00:00:02]} exd4 {[%clk 00:04:30]} 24. Rxd4 {[%clk
00:00:12]} {[%emt 00:00:05]} Rxd4 {[%clk 00:04:34]} 25. Rxd4 {[%clk 00:00:16]}
{[%emt 00:00:01]} Qe1+ {[%clk 00:04:39]} 0-1

[Event "MČR juniorů a juniorek v rapid šachu 2023"]
[Site "Czech Republic"]
[Date "2023.09.23"]
[Round "1.24"]
[White "Rybackova, Lucie"]
[Black "Tvaroh, Vitezslav"]
[Result "1-0"]
[TimeControl "20 min + 5 sec per move"]
[WhiteFideId "23739207"]
[BlackFideId "23704209"]
[WhiteElo "1768"]
[BlackElo "1303"]

1. d4 {[%clk 00:20:02]} {[%emt 00:00:08]} Nf6 {[%clk 00:19:49]} {[%emt
00:00:22]} 2. Nf3 {[%clk 00:20:04]} {[%emt 00:00:02]} e6 {[%clk 00:19:33]}
{[%emt 00:00:22]} 3. g3 {[%clk 00:19:54]} {[%emt 00:00:14]} c5 {[%clk
00:19:34]} {[%emt 00:00:05]} 4. Bg2 {[%clk 00:19:52]} {[%emt 00:00:07]} cxd4
{[%clk 00:19:10]} {[%emt 00:00:28]} 5. Nxd4 {[%clk 00:19:55]} {[%emt 00:00:03]}
Bc5 {[%clk 00:18:17]} {[%emt 00:00:58]} 6. O-O {[%clk 00:19:13]} {[%emt
00:00:47]} d5 {[%clk 00:17:51]} {[%emt 00:00:32]} 7. c4 {[%clk 00:18:21]}
{[%emt 00:00:57]} O-O {[%clk 00:17:24]} {[%emt 00:00:32]} 8. cxd5 {[%clk
00:17:58]} {[%emt 00:00:28]} Nxd5 {[%clk 00:16:35]} {[%emt 00:00:54]} 9. Nb3
{[%clk 00:17:13]} {[%emt 00:00:49]} Bb6 {[%clk 00:15:01]} {[%emt 00:01:39]} 10.
Bd2 {[%clk 00:14:41]} {[%emt 00:02:37]} Nc6 {[%clk 00:13:28]} {[%emt 00:01:38]}
11. Nc3 {[%clk 00:13:23]} {[%emt 00:01:23]} Qf6 {[%clk 00:12:18]} {[%emt
00:01:15]} 12. e4 {[%clk 00:09:12]} {[%emt 00:04:16]} Ndb4 {[%clk 00:10:52]}
{[%emt 00:01:31]} 13. Qe2 {[%clk 00:06:46]} {[%emt 00:02:32]} Rd8 {[%clk
00:08:33]} {[%emt 00:02:24]} 14. Rad1 {[%clk 00:05:17]} {[%emt 00:01:34]} Nd3
{[%clk 00:03:47]} {[%emt 00:04:51]} 15. Bg5 {[%clk 00:04:03]} {[%emt 00:01:18]}
Qxg5 {[%clk 00:02:57]} {[%emt 00:00:55]} 16. Rxd3 {[%clk 00:04:07]} {[%emt
00:00:02]} Nd4 {[%clk 00:01:49]} {[%emt 00:01:14]} 17. Nxd4 {[%clk 00:04:04]}
{[%emt 00:00:07]} Bxd4 {[%clk 00:01:52]} {[%emt 00:00:02]} 18. e5 {[%clk
00:02:40]} {[%emt 00:01:29]} Rb8 {[%clk 00:00:52]} {[%emt 00:01:04]} 19. Rfd1
{[%clk 00:02:21]} {[%emt 00:00:25]} 1-0

[Event "MČR juniorů a juniorek v rapid šachu 2023"]
[Site "Czech Republic"]
[Date "2023.09.23"]
[Round "1.25"]
[White "Cinkova, Vicky"]
[Black "Nagyova, Daniela"]
[Result "0-1"]
[TimeControl "20 min + 5 sec per move"]
[WhiteFideId "23725826"]
[BlackFideId "390070"]
[WhiteElo "1300"]
[BlackElo "1762"]

1. c4 {[%clk 00:20:01]} {[%emt 00:00:08]} e5 {[%clk 00:19:36]} {[%emt
00:00:34]} 2. b3 {[%clk 00:19:54]} {[%emt 00:00:12]} Nf6 {[%clk 00:18:38]}
{[%emt 00:01:03]} 3. Bb2 {[%clk 00:19:55]} {[%emt 00:00:05]} Nc6 {[%clk
00:18:31]} {[%emt 00:00:13]} 4. g3 {[%clk 00:19:35]} {[%emt 00:00:24]} d5
{[%clk 00:16:55]} {[%emt 00:01:41]} 5. Bg2 {[%clk 00:17:30]} {[%emt 00:02:10]}
Be6 {[%clk 00:15:41]} {[%emt 00:01:19]} 6. d3 {[%clk 00:14:47]} {[%emt
00:02:48]} Bb4+ {[%clk 00:12:45]} {[%emt 00:03:01]} 7. Nd2 {[%clk 00:10:43]}
{[%emt 00:04:10]} Qd7 {[%clk 00:12:32]} {[%emt 00:00:18]} 8. a3 {[%clk
00:08:28]} {[%emt 00:02:19]} Be7 {[%clk 00:11:06]} {[%emt 00:01:31]} 9. Qc2
{[%clk 00:07:52]} {[%emt 00:00:41]} Rd8 {[%clk 00:08:44]} {[%emt 00:02:26]} 10.
Ngf3 {[%clk 00:06:14]} {[%emt 00:01:43]} d4 {[%clk 00:06:58]} {[%emt 00:01:51]}
11. c5 {[%clk 00:01:47]} {[%emt 00:04:32]} Bd5 {[%clk 00:04:10]} {[%emt
00:02:54]} 12. O-O {[%clk 00:01:08]} {[%emt 00:00:44]} O-O {[%clk 00:03:55]}
{[%emt 00:00:19]} 13. b4 {[%clk 00:00:08]} {[%emt 00:01:05]} a6 {[%clk
00:03:39]} {[%emt 00:00:21]} 14. Nc4 {[%clk 00:00:12]} {[%emt 00:00:01]} e4
{[%clk 00:02:47]} {[%emt 00:00:57]} 15. Nfe5 {[%emt 00:00:18]} 0-1

[Event "MČR juniorů a juniorek v rapid šachu 2023"]
[Site "Czech Republic"]
[Date "2023.09.23"]
[Round "1.26"]
[White "Husa, Daniel"]
[Black "Bela, Lukas"]
[Result "1-0"]
[TimeControl "20 min + 5 sec per move"]
[WhiteFideId "393487"]
[BlackFideId "23738545"]
[WhiteElo "1760"]
[BlackElo "1297"]

1. d4 {[%clk 00:20:08]} {[%emt 00:00:02]} d5 {[%clk 00:20:08]} {[%emt
00:00:03]} 2. c4 {[%clk 00:20:09]} {[%emt 00:00:03]} e6 {[%clk 00:20:11]}
{[%emt 00:00:02]} 3. Nf3 {[%clk 00:20:12]} {[%emt 00:00:02]} Nf6 {[%clk
00:20:10]} {[%emt 00:00:06]} 4. g3 {[%clk 00:20:14]} {[%emt 00:00:02]} Bd6
{[%clk 00:20:12]} {[%emt 00:00:03]} 5. Bg2 {[%clk 00:20:14]} {[%emt 00:00:05]}
O-O {[%clk 00:20:13]} {[%emt 00:00:05]} 6. O-O {[%clk 00:20:15]} {[%emt
00:00:03]} b6 {[%clk 00:20:15]} {[%emt 00:00:04]} 7. Qc2 {[%clk 00:19:30]}
{[%emt 00:00:50]} Re8 {[%clk 00:19:48]} {[%emt 00:00:32]} 8. Nbd2 {[%clk
00:19:21]} {[%emt 00:00:13]} Nbd7 {[%clk 00:19:34]} {[%emt 00:00:19]} 9. e4
{[%clk 00:19:11]} {[%emt 00:00:15]} Bb4 {[%clk 00:18:54]} {[%emt 00:00:45]} 10.
e5 {[%clk 00:18:14]} {[%emt 00:01:03]} Bxd2 {[%clk 00:18:26]} {[%emt 00:00:32]}
11. Nxd2 {[%clk 00:17:51]} {[%emt 00:00:28]} Nh5 {[%clk 00:17:30]} {[%emt
00:01:01]} 12. cxd5 {[%clk 00:17:43]} {[%emt 00:00:14]} exd5 {[%clk 00:16:35]}
{[%emt 00:01:00]} 13. Bxd5 {[%clk 00:17:39]} {[%emt 00:00:08]} Rb8 {[%clk
00:16:38]} {[%emt 00:00:02]} 14. Qb3 {[%clk 00:17:02]} {[%emt 00:00:42]} Rf8
{[%clk 00:16:05]} {[%emt 00:00:38]} 15. Bxf7+ {[%clk 00:16:11]} {[%emt
00:00:56]} Kh8 {[%clk 00:14:25]} {[%emt 00:01:45]} 16. Bxh5 {[%clk 00:15:55]}
{[%emt 00:00:20]} Ba6 {[%clk 00:13:51]} {[%emt 00:00:40]} 17. Re1 {[%clk
00:15:40]} {[%emt 00:00:20]} g6 {[%clk 00:13:39]} {[%emt 00:00:18]} 18. Bg4
{[%clk 00:15:23]} {[%emt 00:00:21]} c5 {[%clk 00:13:13]} {[%emt 00:00:31]} 19.
d5 {[%clk 00:15:00]} {[%emt 00:00:29]} Re8 {[%clk 00:12:01]} {[%emt 00:01:17]}
20. e6 {[%clk 00:14:08]} {[%emt 00:00:57]} Nf6 {[%clk 00:12:03]} {[%emt
00:00:03]} 21. Qc3 {[%clk 00:14:02]} {[%emt 00:00:11]} Kg8 {[%clk 00:11:09]}
{[%emt 00:00:59]} 22. e7 {[%clk 00:13:11]} {[%emt 00:00:57]} Rxe7 {[%clk
00:11:04]} {[%emt 00:00:10]} 23. Be6+ {[%clk 00:13:04]} {[%emt 00:00:11]} Kg7
{[%clk 00:10:46]} {[%emt 00:00:24]} 24. Ne4 {[%clk 00:12:59]} {[%emt 00:00:09]}
1-0